Workbook

Sheet Sheet1
A1: 附件：
A2: 2025年来凤县事业单位统一公开招聘工作人员面试成绩及总成绩
A3: 序号 | B3: 岗位代码 | C3: 岗位名称 | D3: 招聘单位 | E3: 姓名 | F3: 准考证号 | G3: 岗位招聘人数 | H3: 笔试成绩 | I3: 面试成绩 | J3: 总成绩 | K3: 岗位内排名 | L3: 备注
A4: 1 | B4: 14228008002001001 | C4: 西医临床医生 | D4: 来凤县翔凤镇卫生院 | E4: 杨红 | F4: 5242280800428 | G4: 1 | H4: 59.9 | I4: 80.32 | J4: =H4*0.4+I4*0.6 -> 72.152 | K4: =_xlfn.RANK.EQ(J4,$J$4:$J$6,0) -> 1
A5: 2 | B5: 14228008002001001 | C5: 西医临床医生 | D5: 来凤县翔凤镇卫生院 | E5: 罗朝聪 | F5: 5242280801425 | G5: 1 | H5: 53.63333333 | I5: 78.6 | J5: =H5*0.4+I5*0.6 -> 68.61333333 | K5: =_xlfn.RANK.EQ(J5,$J$4:$J$6,0) -> 2
A6: 3 | B6: 14228008002001001 | C6: 西医临床医生 | D6: 来凤县翔凤镇卫生院 | E6: 周星宇 | F6: 5242280802711 | G6: 1 | H6: 54.53333333 | I6: 63.82 | J6: =H6*0.4+I6*0.6 -> 60.10533333 | K6: =_xlfn.RANK.EQ(J6,$J$4:$J$6,0) -> 3
A7: 4 | B7: 14228008002002001 | C7: 临床护士 | D7: 来凤县绿水镇卫生院 | E7: 杨慧 | F7: 5442280901711 | G7: 1 | H7: 56.1 | I7: 79.22 | J7: =H7*0.4+I7*0.6 -> 69.972 | K7: =_xlfn.RANK.EQ(J7,$J$7:$J$9,0) -> 1
A8: 5 | B8: 14228008002002001 | C8: 临床护士 | D8: 来凤县绿水镇卫生院 | E8: 田琼枝 | F8: 5442280903811 | G8: 1 | H8: 56.33333333 | I8: 78.68 | J8: =H8*0.4+I8*0.6 -> 69.74133333 | K8: =_xlfn.RANK.EQ(J8,$J$7:$J$9,0) -> 2
A9: 6 | B9: 14228008002002001 | C9: 临床护士 | D9: 来凤县绿水镇卫生院 | E9: 尚凌竹 | F9: 5442280900223 | G9: 1 | H9: 55.43333333 | I9: 74.88 | J9: =H9*0.4+I9*0.6 -> 67.10133333 | K9: =_xlfn.RANK.EQ(J9,$J$7:$J$9,0) -> 3
A10: 7 | B10: 14228008002003001 | C10: 临床护士 | D10: 来凤县漫水乡民族卫生院 | E10: 伍雪琴 | F10: 5442280902308 | G10: 1 | H10: 52.1 | I10: 72.68 | J10: 64.448 | K10: =_xlfn.RANK.EQ(J10,$J$10:$J$12,0) -> 1
A11: 8 | B11: 14228008002003001 | C11: 临床护士 | D11: 来凤县漫水乡民族卫生院 | E11: 虞雪慧 | F11: 5442280902425 | G11: 1 | H11: 55.53333333 | I11: 68.34 | J11: 63.21733333 | K11: =_xlfn.RANK.EQ(J11,$J$10:$J$12,0) -> 2
A12: 9 | B12: 14228008002003001 | C12: 临床护士 | D12: 来凤县漫水乡民族卫生院 | E12: 向铃芝 | F12: 5442280900422 | G12: 1 | H12: 52.1 | I12: 62.24 | J12: 58.184 | K12: =_xlfn.RANK.EQ(J12,$J$10:$J$12,0) -> 3
A13: 10 | B13: 14228008002003002 | C13: 西医临床医生 | D13: 来凤县漫水乡民族卫生院 | E13: 田雨苗 | F13: 5242280800504 | G13: 1 | H13: 58.56666667 | I13: 83.5 | J13: 73.52666667 | K13: =_xlfn.RANK.EQ(J13,$J$13:$J$15,0) -> 1
A14: 11 | B14: 14228008002003002 | C14: 西医临床医生 | D14: 来凤县漫水乡民族卫生院 | E14: 廖大凯 | F14: 5242280800323 | G14: 1 | H14: 48.53333333 | I14: 66.22 | J14: 59.14533333 | K14: =_xlfn.RANK.EQ(J14,$J$13:$J$15,0) -> 2
A15: 12 | B15: 14228008002003002 | C15: 西医临床医生 | D15: 来凤县漫水乡民族卫生院 | E15: 明文涛 | F15: 5242280803025 | G15: 1 | H15: 48.267 | I15: 62.22 | J15: 56.6388 | K15: =_xlfn.RANK.EQ(J15,$J$13:$J$15,0) -> 3
A16: 13 | B16: 14228008002004001 | C16: 临床护士 | D16: 来凤县百福司镇中心卫生院 | E16: 谭妮 | F16: 5442280901024 | G16: 1 | H16: 57.06666667 | I16: 73.68 | J16: 67.03466667 | K16: =_xlfn.RANK.EQ(J16,$J$16:$J$18,0) -> 1
A17: 14 | B17: 14228008002004001 | C17: 临床护士 | D17: 来凤县百福司镇中心卫生院 | E17: 陈权霖 | F17: 5442280902702 | G17: 1 | H17: 55.56666667 | I17: 66.26 | J17: 61.98266667 | K17: =_xlfn.RANK.EQ(J17,$J$16:$J$18,0) -> 2
A18: 15 | B18: 14228008002004001 | C18: 临床护士 | D18: 来凤县百福司镇中心卫生院 | E18: 丁效敏 | F18: 5442280903825 | G18: 1 | H18: 54.6 | I18: 65.46 | J18: 61.116 | K18: =_xlfn.RANK.EQ(J18,$J$16:$J$18,0) -> 3
A19: 16 | B19: 14228008002006001 | C19: 临床护士 | D19: 来凤县大河镇卫生院 | E19: 马越 | F19: 5442280904615 | G19: 1 | H19: 51.36666667 | I19: 74.24 | J19: 65.09066667 | K19: =_xlfn.RANK.EQ(J19,$J$19:$J$21,0) -> 1
A20: 17 | B20: 14228008002006001 | C20: 临床护士 | D20: 来凤县大河镇卫生院 | E20: 樊蕤 | F20: 5442280902026 | G20: 1 | H20: 52.16666667 | I20: 72.86 | J20: 64.58266667 | K20: =_xlfn.RANK.EQ(J20,$J$19:$J$21,0) -> 2
A21: 18 | B21: 14228008002006001 | C21: 临床护士 | D21: 来凤县大河镇卫生院 | E21: 刘鑫红 | F21: 5442280902517 | G21: 1 | H21: 50.83333333 | I21: 67.28 | J21: 60.70133333 | K21: =_xlfn.RANK.EQ(J21,$J$19:$J$21,0) -> 3
A22: 19 | B22: 14228008002006002 | C22: 中医医生 | D22: 来凤县大河镇卫生院 | E22: 潘涛 | F22: 5142280308628 | G22: 1 | H22: 52.46666667 | I22: 75.56 | J22: 66.32266667 | K22: =_xlfn.RANK.EQ(J22,$J$22:$J$24,0) -> 1
A23: 20 | B23: 14228008002006002 | C23: 中医医生 | D23: 来凤县大河镇卫生院 | E23: 陈俊华 | F23: 5142280308707 | G23: 1 | H23: 57.63333333 | I23: 70.8 | J23: 65.53333333 | K23: =_xlfn.RANK.EQ(J23,$J$22:$J$24,0) -> 2
A24: 21 | B24: 14228008002006002 | C24: 中医医生 | D24: 来凤县大河镇卫生院 | E24: 胡婷 | F24: 5142280308918 | G24: 1 | H24: 52.1 | I24: 60.58 | J24: 57.188 | K24: =_xlfn.RANK.EQ(J24,$J$22:$J$24,0) -> 3
A25: 22 | B25: 14228008002006003 | C25: 西医医生 | D25: 来凤县大河镇卫生院 | E25: 王明杰 | F25: 5242280803624 | G25: 1 | H25: 56.6 | I25: 78.7 | J25: 69.86 | K25: =_xlfn.RANK.EQ(J25,$J$25:$J$27,0) -> 1
A26: 23 | B26: 14228008002006003 | C26: 西医医生 | D26: 来凤县大河镇卫生院 | E26: 晏俊 | F26: 5242280800430 | G26: 1 | H26: 56.86666667 | I26: 72.8 | J26: 66.42666667 | K26: =_xlfn.RANK.EQ(J26,$J$25:$J$27,0) -> 2
A27: 24 | B27: 14228008002006003 | C27: 西医医生 | D27: 来凤县大河镇卫生院 | E27: 彭灵敏 | F27: 5242280802017 | G27: 1 | H27: 58.53333333 | I27: 65.6 | J27: 62.77333333 | K27: =_xlfn.RANK.EQ(J27,$J$25:$J$27,0) -> 3
A28: 25 | B28: 14228008002007001 | C28: 中西医结合临床医生 | D28: 来凤县革勒车镇卫生院 | E28: 黄晶 | F28: 5142280308526 | G28: 1 | H28: 56.3 | I28: 60.42 | J28: 58.772 | K28: =_xlfn.RANK.EQ(J28,$J$28:$J$30,0) -> 1
A29: 26 | B29: 14228008002007001 | C29: 中西医结合临床医生 | D29: 来凤县革勒车镇卫生院 | E29: 喻倩瑶 | F29: 5142280308611 | G29: 1 | H29: 45.7 | I29: 60.46 | J29: 54.556 | K29: =_xlfn.RANK.EQ(J29,$J$28:$J$30,0) -> 2
A30: 27 | B30: 14228008002007001 | C30: 中西医结合临床医生 | D30: 来凤县革勒车镇卫生院 | E30: 肖午铭 | F30: 5142280308327 | G30: 1 | H30: 45.6 | I30: 60.06 | J30: 54.276 | K30: =_xlfn.RANK.EQ(J30,$J$28:$J$30,0) -> 3
A31: 28 | B31: 14228008002008001 | C31: 医疗业务收支核算岗 | D31: 来凤县人民医院 | E31: 向娇 | F31: 2142280307111 | G31: 1 | H31: 72.83333333 | I31: 84.44 | J31: 79.79733333 | K31: =_xlfn.RANK.EQ(J31,$J$31:$J$34,0) -> 1
A32: 29 | B32: 14228008002008001 | C32: 医疗业务收支核算岗 | D32: 来凤县人民医院 | E32: 邓兴安 | F32: 2142280302526 | G32: 1 | H32: 69.333 | I32: 85.26 | J32: 78.8892 | K32: =_xlfn.RANK.EQ(J32,$J$31:$J$34,0) -> 2
A33: 30 | B33: 14228008002008001 | C33: 医疗业务收支核算岗 | D33: 来凤县人民医院 | E33: 李佳 | F33: 2142280304628 | G33: 1 | H33: 69.333 | I33: 83.32 | J33: 77.7252 | K33: =_xlfn.RANK.EQ(J33,$J$31:$J$34,0) -> 3
A34: 31 | B34: 14228008002008001 | C34: 医疗业务收支核算岗 | D34: 来凤县人民医院 | E34: 李娟 | F34: 2142280302829 | G34: 1 | H34: 74.5 | I34: 0 | J34: 29.8 | K34: =_xlfn.RANK.EQ(J34,$J$31:$J$34,0) -> 4 | L34: 缺考
A35: 32 | B35: 14228008002008002 | C35: 设备科工程技术岗 | D35: 来凤县人民医院 | E35: 莫文平 | F35: 3142280508804 | G35: 1 | H35: 61.66666667 | I35: 76.64 | J35: 70.65066667 | K35: =_xlfn.RANK.EQ(J35,$J$35:$J$38,0) -> 1
A36: 33 | B36: 14228008002008002 | C36: 设备科工程技术岗 | D36: 来凤县人民医院 | E36: 李先超 | F36: 3142280510911 | G36: 1 | H36: 62.33333333 | I36: 74.52 | J36: 69.64533333 | K36: =_xlfn.RANK.EQ(J36,$J$35:$J$38,0) -> 2
A37: 34 | B37: 14228008002008002 | C37: 设备科工程技术岗 | D37: 来凤县人民医院 | E37: 张杨 | F37: 3142280509407 | G37: 1 | H37: 61.66666667 | I37: 72.6 | J37: 68.22666667 | K37: =_xlfn.RANK.EQ(J37,$J$35:$J$38,0) -> 3
A38: 35 | B38: 14228008002008002 | C38: 设备科工程技术岗 | D38: 来凤县人民医院 | E38: 唐允 | F38: 3142280510028 | G38: 1 | H38: 61.66666667 | I38: 69.9 | J38: 66.60666667 | K38: =_xlfn.RANK.EQ(J38,$J$35:$J$38,0) -> 4
A39: 36 | B39: 14228008002008003 | C39: 网络维护岗 | D39: 来凤县人民医院 | E39: 刘太林 | F39: 2142280304725 | G39: 1 | H39: 72.33333333 | I39: 77.52 | J39: 75.44533333 | K39: =_xlfn.RANK.EQ(J39,$J$39:$J$41,0) -> 1
A40: 37 | B40: 14228008002008003 | C40: 网络维护岗 | D40: 来凤县人民医院 | E40: 安秦 | F40: 2142280306408 | G40: 1 | H40: 69.33333333 | I40: 69.28 | J40: 69.30133333 | K40: =_xlfn.RANK.EQ(J40,$J$39:$J$41,0) -> 2
A41: 38 | B41: 14228008002008003 | C41: 网络维护岗 | D41: 来凤县人民医院 | E41: 肖婷 | F41: 2142280302405 | G41: 1 | H41: 68.83333333 | I41: 0 | J41: 27.53333333 | K41: =_xlfn.RANK.EQ(J41,$J$39:$J$41,0) -> 3 | L41: 缺考
A42: 39 | B42: 14228008002008004 | C42: 临床护士 | D42: 来凤县人民医院 | E42: 向玉玲 | F42: 5442280901228 | G42: 1 | H42: 60.7 | I42: 73.38 | J42: 68.308 | K42: =_xlfn.RANK.EQ(J42,$J$42:$J$44,0) -> 1
A43: 40 | B43: 14228008002008004 | C43: 临床护士 | D43: 来凤县人民医院 | E43: 刘淼 | F43: 5442280901317 | G43: 1 | H43: 58.06666667 | I43: 67.58 | J43: 63.77466667 | K43: =_xlfn.RANK.EQ(J43,$J$42:$J$44,0) -> 2
A44: 41 | B44: 14228008002008004 | C44: 临床护士 | D44: 来凤县人民医院 | E44: 陈萍 | F44: 5442280904015 | G44: 1 | H44: 55.66666667 | I44: 0 | J44: 22.26666667 | K44: =_xlfn.RANK.EQ(J44,$J$42:$J$44,0) -> 3 | L44: 缺考
A45: 42 | B45: 14228008002008005 | C45: 临床医生1 | D45: 来凤县人民医院 | E45: 罗代强 | F45: 5242280800209 | G45: 1 | H45: 61.06666667 | I45: 86.68 | J45: 76.43466667 | K45: =_xlfn.RANK.EQ(J45,$J$45:$J$47,0) -> 1
A46: 43 | B46: 14228008002008005 | C46: 临床医生1 | D46: 来凤县人民医院 | E46: 唐亚 | F46: 5242280801522 | G46: 1 | H46: 57.8 | I46: 75.9 | J46: 68.66 | K46: =_xlfn.RANK.EQ(J46,$J$45:$J$47,0) -> 2
A47: 44 | B47: 14228008002008005 | C47: 临床医生1 | D47: 来凤县人民医院 | E47: 张逸风 | F47: 5242280802624 | G47: 1 | H47: 60.86666667 | I47: 71.72 | J47: 67.37866667 | K47: =_xlfn.RANK.EQ(J47,$J$45:$J$47,0) -> 3
A48: 45 | B48: 14228008002008006 | C48: 临床医生2 | D48: 来凤县人民医院 | E48: 陈银梅 | F48: 5242280802301 | G48: 1 | H48: 65.83333333 | I48: 78.72 | J48: 73.56533333 | K48: =_xlfn.RANK.EQ(J48,$J$48:$J$50,0) -> 1
A49: 46 | B49: 14228008002008006 | C49: 临床医生2 | D49: 来凤县人民医院 | E49: 杨明豪 | F49: 5242280802027 | G49: 1 | H49: 56.26666667 | I49: 72.38 | J49: 65.93466667 | K49: =_xlfn.RANK.EQ(J49,$J$48:$J$50,0) -> 2
A50: 47 | B50: 14228008002008006 | C50: 临床医生2 | D50: 来凤县人民医院 | E50: 杨谊辉 | F50: 5242280803225 | G50: 1 | H50: 53.53333333 | I50: 60.24 | J50: 57.55733333 | K50: =_xlfn.RANK.EQ(J50,$J$48:$J$50,0) -> 3
A51: 48 | B51: 14228008002009001 | C51: 医疗业务收支核算岗 | D51: 来凤县中医医院 | E51: 田欣欣 | F51: 2142280308018 | G51: 1 | H51: 75.33333333 | I51: 85.58 | J51: 81.48133333 | K51: =_xlfn.RANK.EQ(J51,$J$51:$J$53,0) -> 1
A52: 49 | B52: 14228008002009001 | C52: 医疗业务收支核算岗 | D52: 来凤县中医医院 | E52: 李婷 | F52: 2142280305408 | G52: 1 | H52: 73.16666667 | I52: 85.16 | J52: 80.36266667 | K52: =_xlfn.RANK.EQ(J52,$J$51:$J$53,0) -> 2
A53: 50 | B53: 14228008002009001 | C53: 医疗业务收支核算岗 | D53: 来凤县中医医院 | E53: 尹玟琪 | F53: 2142280305816 | G53: 1 | H53: 70.5 | I53: 83.92 | J53: 78.552 | K53: =_xlfn.RANK.EQ(J53,$J$51:$J$53,0) -> 3
A54: 51 | B54: 14228008002009003 | C54: 中医内科临床医生 | D54: 来凤县中医医院 | E54: 金爱林 | F54: 5142280308905 | G54: 1 | H54: 58.6 | I54: 69.22 | J54: 64.972 | K54: =_xlfn.RANK.EQ(J54,$J$54:$J$56,0) -> 1
A55: 52 | B55: 14228008002009003 | C55: 中医内科临床医生 | D55: 来凤县中医医院 | E55: 万荣 | F55: 5142280308309 | G55: 1 | H55: 58.4 | I55: 64.02 | J55: 61.772 | K55: =_xlfn.RANK.EQ(J55,$J$54:$J$56,0) -> 2
A56: 53 | B56: 14228008002009003 | C56: 中医内科临床医生 | D56: 来凤县中医医院 | E56: 邹森凤 | F56: 5142280308925 | G56: 1 | H56: 51.7 | I56: 0 | J56: 20.68 | K56: =_xlfn.RANK.EQ(J56,$J$54:$J$56,0) -> 3 | L56: 缺考
A57: 54 | B57: 14228008002009004 | C57: 急诊医学科医生1 | D57: 来凤县中医医院 | E57: 田世超 | F57: 5142280308308 | G57: 2 | H57: 52.23333333 | I57: 77.32 | J57: 67.28533333 | K57: =_xlfn.RANK.EQ(J57,$J$57:$J$62,0) -> 1
A58: 55 | B58: 14228008002009004 | C58: 急诊医学科医生1 | D58: 来凤县中医医院 | E58: 覃力 | F58: 5142280308814 | G58: 2 | H58: 45.26666667 | I58: 77.4 | J58: 64.54666667 | K58: 2
A59: 56 | B59: 14228008002009004 | C59: 急诊医学科医生1 | D59: 来凤县中医医院 | E59: 孙雨辉 | F59: 5142280308811 | G59: 2 | H59: 48.06666667 | I59: 71.2 | J59: 61.94666667 | K59: 3
A60: 57 | B60: 14228008002009004 | C60: 急诊医学科医生1 | D60: 来凤县中医医院 | E60: 陈倩 | F60: 5142280308315 | G60: 2 | H60: 51.1 | I60: 60.4 | J60: 56.68 | K60: 4
A61: 58 | B61: 14228008002009004 | C61: 急诊医学科医生1 | D61: 来凤县中医医院 | E61: 蒲润 | F61: 5142280308726 | G61: 2 | H61: 48.5 | I61: 62.04 | J61: 56.624 | K61: 5
A62: 59 | B62: 14228008002009004 | C62: 急诊医学科医生1 | D62: 来凤县中医医院 | E62: 王仁洋 | F62: 5142280308807 | G62: 2 | H62: 42.63333333 | I62: 60.78 | J62: 53.52133333 | K62: 6
A63: 60 | B63: 14228008002009005 | C63: 急诊医学科医生2 | D63: 来凤县中医医院 | E63: 彭亚 | F63: 5242280802805 | G63: 1 | H63: 50.16666667 | I63: 68.78 | J63: 61.33466667 | K63: =_xlfn.RANK.EQ(J63,$J$63:$J$65,0) -> 1
A64: 61 | B64: 14228008002009005 | C64: 急诊医学科医生2 | D64: 来凤县中医医院 | E64: 段鸿敏 | F64: 5242280802303 | G64: 1 | H64: 50.16666667 | I64: 65.8 | J64: 59.54666667 | K64: =_xlfn.RANK.EQ(J64,$J$63:$J$65,0) -> 2
A65: 62 | B65: 14228008002009005 | C65: 急诊医学科医生2 | D65: 来凤县中医医院 | E65: 李士杰 | F65: 5242280800601 | G65: 1 | H65: 48.3 | I65: 0 | J65: 19.32 | K65: =_xlfn.RANK.EQ(J65,$J$63:$J$65,0) -> 3 | L65: 缺考
A66: 63 | B66: 14228008002009006 | C66: 中医外科临床医生 | D66: 来凤县中医医院 | E66: 唐世轩 | F66: 5142280308406 | G66: 1 | H66: 47 | I66: 67.1 | J66: 59.06 | K66: =_xlfn.RANK.EQ(J66,$J$66:$J$67,0) -> 1
A67: 64 | B67: 14228008002009006 | C67: 中医外科临床医生 | D67: 来凤县中医医院 | E67: 向宏图 | F67: 5142280308627 | G67: 1 | H67: 49.93333333 | I67: 64.86 | J67: 58.88933333 | K67: =_xlfn.RANK.EQ(J67,$J$66:$J$67,0) -> 2
A68: 65 | B68: 14228008002009008 | C68: 外科医生 | D68: 来凤县中医医院 | E68: 谢丹 | F68: 5242280803209 | G68: 1 | H68: 53.83333333 | I68: 74.8 | J68: 66.41333333 | K68: =_xlfn.RANK.EQ(J68,$J$68:$J$70,0) -> 1
A69: 66 | B69: 14228008002009008 | C69: 外科医生 | D69: 来凤县中医医院 | E69: 田耕畅 | F69: 5242280803412 | G69: 1 | H69: 53.46666667 | I69: 68.84 | J69: 62.69066667 | K69: =_xlfn.RANK.EQ(J69,$J$68:$J$70,0) -> 2
A70: 67 | B70: 14228008002009008 | C70: 外科医生 | D70: 来凤县中医医院 | E70: 覃译锋 | F70: 5242280801222 | G70: 1 | H70: 53.93333333 | I70: 67.32 | J70: 61.96533333 | K70: =_xlfn.RANK.EQ(J70,$J$68:$J$70,0) -> 3
A71: 68 | B71: 14228008002009010 | C71: 临床护士 | D71: 来凤县中医医院 | E71: 刘琴 | F71: 5442280901716 | G71: 2 | H71: 65.86666667 | I71: 73.36 | J71: 70.36266667 | K71: =_xlfn.RANK.EQ(J71,$J$71:$J$76,0) -> 1
A72: 69 | B72: 14228008002009010 | C72: 临床护士 | D72: 来凤县中医医院 | E72: 赵姬 | F72: 5442280900230 | G72: 2 | H72: 59.03333333 | I72: 72.5 | J72: 67.11333333 | K72: 2
A73: 70 | B73: 14228008002009010 | C73: 临床护士 | D73: 来凤县中医医院 | E73: 舒敏 | F73: 5442280902827 | G73: 2 | H73: 56.03333333 | I73: 71.66 | J73: =H73*0.4+I73*0.6 -> 65.40933333 | K73: 3
A74: 71 | B74: 14228008002009010 | C74: 临床护士 | D74: 来凤县中医医院 | E74: 文露 | F74: 5442280901124 | G74: 2 | H74: 59.66666667 | I74: 63.74 | J74: 62.11066667 | K74: 4
A75: 72 | B75: 14228008002009010 | C75: 临床护士 | D75: 来凤县中医医院 | E75: 李京航 | F75: 5442280903220 | G75: 2 | H75: 56.53333333 | I75: 61.02 | J75: 59.22533333 | K75: 5
A76: 73 | B76: 14228008002009010 | C76: 临床护士 | D76: 来凤县中医医院 | E76: 卢萍 | F76: 5442280903012 | G76: 2 | H76: 54.06666667 | I76: 60.84 | J76: 58.13066667 | K76: 6
A77: 74 | B77: 14228008002009011 | C77: 信息系统运维岗 | D77: 来凤县中医医院 | E77: 余祥瑞 | F77: 3142280509121 | G77: 2 | H77: 66.33333333 | I77: 81.06 | J77: 75.16933333 | K77: =_xlfn.RANK.EQ(J77,$J$77:$J$83,0) -> 1
A78: 75 | B78: 14228008002009011 | C78: 信息系统运维岗 | D78: 来凤县中医医院 | E78: 李旭 | F78: 3142280510413 | G78: 2 | H78: 64.33333333 | I78: 80.04 | J78: 73.75733333 | K78: 2
A79: 76 | B79: 14228008002009011 | C79: 信息系统运维岗 | D79: 来凤县中医医院 | E79: 张力文 | F79: 3142280510227 | G79: 2 | H79: 67.5 | I79: 76.06 | J79: 72.636 | K79: 3
A80: 77 | B80: 14228008002009011 | C80: 信息系统运维岗 | D80: 来凤县中医医院 | E80: 张浡灏 | F80: 3142280505302 | G80: 2 | H80: 66.83333333 | I80: 76.18 | J80: 72.44133333 | K80: 4
A81: 78 | B81: 14228008002009011 | C81: 信息系统运维岗 | D81: 来凤县中医医院 | E81: 张浩 | F81: 3142280504207 | G81: 2 | H81: 62.333 | I81: 76.62 | J81: 70.9052 | K81: 5
A82: 79 | B82: 14228008002009011 | C82: 信息系统运维岗 | D82: 来凤县中医医院 | E82: 张诗宇 | F82: 3142280508230 | G82: 2 | H82: 62.83333333 | I82: 71.76 | J82: 68.18933333 | K82: 6
A83: 80 | B83: 14228008002009011 | C83: 信息系统运维岗 | D83: 来凤县中医医院 | E83: 万豪 | F83: 3142280507520 | G83: 2 | H83: 62.333 | I83: 70.88 | J83: 67.4612 | K83: 7
A84: 81 | B84: 14228008002010001 | C84: 医疗业务收支核算岗 | D84: 来凤县疾病预防控制中心 | E84: 郭瑶 | F84: 2142280104628 | G84: 1 | H84: 75.66666667 | I84: 86.2 | J84: 81.98666667 | K84: =_xlfn.RANK.EQ(J84,$J$84:$J$86,0) -> 1
A85: 82 | B85: 14228008002010001 | C85: 医疗业务收支核算岗 | D85: 来凤县疾病预防控制中心 | E85: 张维 | F85: 2142280303226 | G85: 1 | H85: 66 | I85: 82.54 | J85: 75.924 | K85: =_xlfn.RANK.EQ(J85,$J$84:$J$86,0) -> 2
A86: 83 | B86: 14228008002010001 | C86: 医疗业务收支核算岗 | D86: 来凤县疾病预防控制中心 | E86: 田雪秀 | F86: 2142280302910 | G86: 1 | H86: 64.667 | I86: 80.16 | J86: 73.9628 | K86: =_xlfn.RANK.EQ(J86,$J$84:$J$86,0) -> 3
A87: 84 | B87: 14228008002010002 | C87: 疾病预防控制岗 | D87: 来凤县疾病预防控制中心 | E87: 龚毅 | F87: 5242280801508 | G87: 3 | H87: 63.6 | I87: 79.64 | J87: 73.224 | K87: =_xlfn.RANK.EQ(J87,$J$87:$J$95,0) -> 1
A88: 85 | B88: 14228008002010002 | C88: 疾病预防控制岗 | D88: 来凤县疾病预防控制中心 | E88: 彭作琴 | F88: 5242280800317 | G88: 3 | H88: 62.2 | I88: 79.7 | J88: 72.7 | K88: 2
A89: 86 | B89: 14228008002010002 | C89: 疾病预防控制岗 | D89: 来凤县疾病预防控制中心 | E89: 王红力 | F89: 5242280800412 | G89: 3 | H89: 61.7 | I89: 64.98 | J89: 63.668 | K89: 3
A90: 87 | B90: 14228008002010002 | C90: 疾病预防控制岗 | D90: 来凤县疾病预防控制中心 | E90: 曾辉 | F90: 5242280801802 | G90: 3 | H90: 59.2 | I90: 66.36 | J90: 63.496 | K90: 4
A91: 88 | B91: 14228008002010002 | C91: 疾病预防控制岗 | D91: 来凤县疾病预防控制中心 | E91: 吴长霖 | F91: 5242280800528 | G91: 3 | H91: 58.1 | I91: 64.42 | J91: 61.892 | K91: 5
A92: 89 | B92: 14228008002010002 | C92: 疾病预防控制岗 | D92: 来凤县疾病预防控制中心 | E92: 吴剑桥 | F92: 5242280800514 | G92: 3 | H92: 57.533 | I92: 64.54 | J92: 61.7372 | K92: 6
A93: 90 | B93: 14228008002010002 | C93: 疾病预防控制岗 | D93: 来凤县疾病预防控制中心 | E93: 王小飞 | F93: 5242280800626 | G93: 3 | H93: 58.76666667 | I93: 60.42 | J93: 59.75866667 | K93: 7
A94: 91 | B94: 14228008002010002 | C94: 疾病预防控制岗 | D94: 来凤县疾病预防控制中心 | E94: 朱书磊 | F94: 5242280801501 | G94: 3 | H94: 53.667 | I94: 62.04 | J94: 58.6908 | K94: 8
A95: 92 | B95: 14228008002010002 | C95: 疾病预防控制岗 | D95: 来凤县疾病预防控制中心 | E95: 杨荔婷 | F95: 5242280800628 | G95: 3 | H95: 66.46666667 | I95: 0 | J95: 26.58666667 | K95: 9 | L95: 缺考
A96: 93 | B96: 14228008002011001 | C96: 妇产科护理岗 | D96: 来凤县妇幼保健计划生育服务中心 | E96: 熊清晨 | F96: 5442280902722 | G96: 1 | H96: 57.96666667 | I96: 74.64 | J96: 67.97066667 | K96: =_xlfn.RANK.EQ(J96,$J$96:$J$98,0) -> 1
A97: 94 | B97: 14228008002011001 | C97: 妇产科护理岗 | D97: 来凤县妇幼保健计划生育服务中心 | E97: 姚倩 | F97: 5442280903618 | G97: 1 | H97: 53.33333333 | I97: 77.66 | J97: 67.92933333 | K97: =_xlfn.RANK.EQ(J97,$J$96:$J$98,0) -> 2
A98: 95 | B98: 14228008002011001 | C98: 妇产科护理岗 | D98: 来凤县妇幼保健计划生育服务中心 | E98: 田红杏 | F98: 5442280901708 | G98: 1 | H98: 55.6 | I98: 74.46 | J98: 66.916 | K98: =_xlfn.RANK.EQ(J98,$J$96:$J$98,0) -> 3
A99: 96 | B99: 14228008002011003 | C99: 超声诊断医生 | D99: 来凤县妇幼保健计划生育服务中心 | E99: 陈凡 | F99: 5242280800508 | G99: 1 | H99: 48.06666667 | I99: 77.58 | J99: 65.77466667 | K99: =_xlfn.RANK.EQ(J99,$J$99:$J$100,0) -> 1
A100: 97 | B100: 14228008002011003 | C100: 超声诊断医生 | D100: 来凤县妇幼保健计划生育服务中心 | E100: 向晓小 | F100: 5242280801826 | G100: 1 | H100: 56.53333333 | I100: 65.38 | J100: 61.84133333 | K100: =_xlfn.RANK.EQ(J100,$J$99:$J$100,0) -> 2
A101: 98 | B101: 14228008002012001 | C101: 政策法规岗 | D101: 来凤县卫生应急物资储备中心 | E101: 黄晓春 | F101: 1142280603728 | G101: 1 | H101: 67.33333333 | I101: 80.4 | J101: 75.17333333 | K101: =_xlfn.RANK.EQ(J101,$J$101:$J$103,0) -> 1
A102: 99 | B102: 14228008002012001 | C102: 政策法规岗 | D102: 来凤县卫生应急物资储备中心 | E102: 李茜 | F102: 1142280600414 | G102: 1 | H102: 61.66666667 | I102: 81.426 | J102: 73.52226667 | K102: =_xlfn.RANK.EQ(J102,$J$101:$J$103,0) -> 2
A103: 100 | B103: 14228008002012001 | C103: 政策法规岗 | D103: 来凤县卫生应急物资储备中心 | E103: 叶峻树 | F103: 1142280602204 | G103: 1 | H103: 60.66666667 | I103: 80.46 | J103: 72.54266667 | K103: =_xlfn.RANK.EQ(J103,$J$101:$J$103,0) -> 3
A104: 101 | B104: 14228008002013002 | C104: 临床医生 | D104: 来凤县中西医结合医院 | E104: 李娟 | F104: 5242280801221 | G104: 1 | H104: 60.53333333 | I104: 77.7 | J104: 70.83333333 | K104: =_xlfn.RANK.EQ(J104,$J$104:$J$106,0) -> 1
A105: 102 | B105: 14228008002013002 | C105: 临床医生 | D105: 来凤县中西医结合医院 | E105: 覃地平 | F105: 5242280800603 | G105: 1 | H105: 56.43333333 | I105: 76.46 | J105: 68.44933333 | K105: =_xlfn.RANK.EQ(J105,$J$104:$J$106,0) -> 2
A106: 103 | B106: 14228008002013002 | C106: 临床医生 | D106: 来凤县中西医结合医院 | E106: 彭相云 | F106: 5242280801928 | G106: 1 | H106: 50.36666667 | I106: 0 | J106: 20.14666667 | K106: =_xlfn.RANK.EQ(J106,$J$104:$J$106,0) -> 3 | L106: 缺考
A107: 104 | B107: 14228008003001001 | C107: 全媒体记者1 | D107: 来凤县融媒体中心 | E107: 雷果果 | F107: 2142280306011 | G107: 1 | H107: 73.16666667 | I107: 86.22 | J107: 80.99866667 | K107: =_xlfn.RANK.EQ(J107,$J$107:$J$109,0) -> 1
A108: 105 | B108: 14228008003001001 | C108: 全媒体记者1 | D108: 来凤县融媒体中心 | E108: 方文会 | F108: 2142280306007 | G108: 1 | H108: 70.16666667 | I108: 80.18 | J108: 76.17466667 | K108: =_xlfn.RANK.EQ(J108,$J$107:$J$109,0) -> 2
A109: 106 | B109: 14228008003001001 | C109: 全媒体记者1 | D109: 来凤县融媒体中心 | E109: 朱煜 | F109: 2142280302901 | G109: 1 | H109: 69.66666667 | I109: 80.28 | J109: 76.03466667 | K109: =_xlfn.RANK.EQ(J109,$J$107:$J$109,0) -> 3
A110: 107 | B110: 14228008003001002 | C110: 全媒体记者2 | D110: 来凤县融媒体中心 | E110: 王静雯 | F110: 2142280307114 | G110: 1 | H110: 73.5 | I110: 83.12 | J110: 79.272 | K110: =_xlfn.RANK.EQ(J110,$J$110:$J$112,0) -> 1
A111: 108 | B111: 14228008003001002 | C111: 全媒体记者2 | D111: 来凤县融媒体中心 | E111: 向明慧 | F111: 2142280300623 | G111: 1 | H111: 70.16666667 | I111: 82.2 | J111: 77.38666667 | K111: =_xlfn.RANK.EQ(J111,$J$110:$J$112,0) -> 2
A112: 109 | B112: 14228008003001002 | C112: 全媒体记者2 | D112: 来凤县融媒体中心 | E112: 向星童 | F112: 2142280301412 | G112: 1 | H112: 73.33333333 | I112: 75.92 | J112: 74.88533333 | K112: =_xlfn.RANK.EQ(J112,$J$110:$J$112,0) -> 3
A113: 110 | B113: 14228008004001001 | C113: 公共资源交易服务岗 | D113: 来凤县公共资源交易中心 | E113: 向一文 | F113: 2142280103714 | G113: 1 | H113: 78.66666667 | I113: 82.84 | J113: 81.17066667 | K113: =_xlfn.RANK.EQ(J113,$J$113:$J$115,0) -> 1
A114: 111 | B114: 14228008004001001 | C114: 公共资源交易服务岗 | D114: 来凤县公共资源交易中心 | E114: 林慧 | F114: 2142280100812 | G114: 1 | H114: 68.16666667 | I114: 83.24 | J114: 77.21066667 | K114: =_xlfn.RANK.EQ(J114,$J$113:$J$115,0) -> 2
A115: 112 | B115: 14228008004001001 | C115: 公共资源交易服务岗 | D115: 来凤县公共资源交易中心 | E115: 谭玉倩 | F115: 2142280105209 | G115: 1 | H115: 66.16666667 | I115: 84.22 | J115: 76.99866667 | K115: =_xlfn.RANK.EQ(J115,$J$113:$J$115,0) -> 3
A116: 113 | B116: 14228008004002001 | C116: 规划技术岗 | D116: 来凤县政策研究中心 | E116: 刘铭 | F116: 3142280508717 | G116: 1 | H116: 64.5 | I116: 86.08 | J116: 77.448 | K116: =_xlfn.RANK.EQ(J116,$J$116:$J$118,0) -> 1
A117: 114 | B117: 14228008004002001 | C117: 规划技术岗 | D117: 来凤县政策研究中心 | E117: 曾欢悦 | F117: 3142280509607 | G117: 1 | H117: 62.33333333 | I117: 81.56 | J117: 73.86933333 | K117: =_xlfn.RANK.EQ(J117,$J$116:$J$118,0) -> 2
A118: 115 | B118: 14228008004002001 | C118: 规划技术岗 | D118: 来凤县政策研究中心 | E118: 杨琴 | F118: 3142280504928 | G118: 1 | H118: 61.16666667 | I118: 78.86 | J118: 71.78266667 | K118: =_xlfn.RANK.EQ(J118,$J$116:$J$118,0) -> 3
A119: 116 | B119: 14228008004003001 | C119: 公共检测岗 | D119: 来凤县公共检验检测中心 | E119: 陈锦华 | F119: 3142280507615 | G119: 1 | H119: 68 | I119: 83.14 | J119: 77.084 | K119: =_xlfn.RANK.EQ(J119,$J$119:$J$121,0) -> 1
A120: 117 | B120: 14228008004003001 | C120: 公共检测岗 | D120: 来凤县公共检验检测中心 | E120: 洪建华 | F120: 3142280508402 | G120: 1 | H120: 67.33333333 | I120: 81.78 | J120: 76.00133333 | K120: =_xlfn.RANK.EQ(J120,$J$119:$J$121,0) -> 2
A121: 118 | B121: 14228008004003001 | C121: 公共检测岗 | D121: 来凤县公共检验检测中心 | E121: 谭晶 | F121: 3142280504418 | G121: 1 | H121: 72.5 | I121: 0 | J121: 29 | K121: =_xlfn.RANK.EQ(J121,$J$119:$J$121,0) -> 3 | L121: 缺考
A122: 119 | B122: 14228008006001001 | C122: 理论研究岗 | D122: 中共来凤县委理论信息中心 | E122: 刘亦琳 | F122: 1142280213811 | G122: 1 | H122: 72.33333333 | I122: 86.16 | J122: 80.62933333 | K122: =_xlfn.RANK.EQ(J122,$J$122:$J$124,0) -> 1
A123: 120 | B123: 14228008006001001 | C123: 理论研究岗 | D123: 中共来凤县委理论信息中心 | E123: 潘高锋 | F123: 1142280212216 | G123: 1 | H123: 71.5 | I123: 86.44 | J123: 80.464 | K123: =_xlfn.RANK.EQ(J123,$J$122:$J$124,0) -> 2
A124: 121 | B124: 14228008006001001 | C124: 理论研究岗 | D124: 中共来凤县委理论信息中心 | E124: 李盼 | F124: 1142280215615 | G124: 1 | H124: 73 | I124: 81.8 | J124: 78.28 | K124: =_xlfn.RANK.EQ(J124,$J$122:$J$124,0) -> 3
A125: 122 | B125: 14228008006002001 | C125: 综合业务岗 | D125: 来凤县新时代文明实践指导中心 | E125: 李梓 | F125: 1142280214016 | G125: 1 | H125: 80.83333333 | I125: 87.46 | J125: 84.80933333 | K125: =_xlfn.RANK.EQ(J125,$J$125:$J$127,0) -> 1
A126: 123 | B126: 14228008006002001 | C126: 综合业务岗 | D126: 来凤县新时代文明实践指导中心 | E126: 王婷 | F126: 1142280213407 | G126: 1 | H126: 73.83333333 | I126: 82.6 | J126: 79.09333333 | K126: =_xlfn.RANK.EQ(J126,$J$125:$J$127,0) -> 2
A127: 124 | B127: 14228008006002001 | C127: 综合业务岗 | D127: 来凤县新时代文明实践指导中心 | E127: 刘格菲 | F127: 1142280208205 | G127: 1 | H127: 78 | I127: 78.08 | J127: 78.048 | K127: =_xlfn.RANK.EQ(J127,$J$125:$J$127,0) -> 3
A128: 125 | B128: 14228008006002002 | C128: 信息技术岗 | D128: 来凤县新时代文明实践指导中心 | E128: 唐佳艺 | F128: 3142280509929 | G128: 1 | H128: 65.83333333 | I128: 79.6 | J128: 74.09333333 | K128: =_xlfn.RANK.EQ(J128,$J$128:$J$130,0) -> 1
A129: 126 | B129: 14228008006002002 | C129: 信息技术岗 | D129: 来凤县新时代文明实践指导中心 | E129: 贺曌 | F129: 3142280506210 | G129: 1 | H129: 65.16666667 | I129: 79.88 | J129: 73.99466667 | K129: =_xlfn.RANK.EQ(J129,$J$128:$J$130,0) -> 2
A130: 127 | B130: 14228008006002002 | C130: 信息技术岗 | D130: 来凤县新时代文明实践指导中心 | E130: 杨楷 | F130: 3142280505923 | G130: 1 | H130: 66 | I130: 78.14 | J130: 73.284 | K130: =_xlfn.RANK.EQ(J130,$J$128:$J$130,0) -> 3
A131: 128 | B131: 14228008007001001 | C131: 综合管理岗 | D131: 来凤县社会治安综合治理中心 | E131: 高天一 | F131: 3142280504316 | G131: 1 | H131: 70.83333333 | I131: 80.9 | J131: 76.87333333 | K131: =_xlfn.RANK.EQ(J131,$J$131:$J$133,0) -> 1
A132: 129 | B132: 14228008007001001 | C132: 综合管理岗 | D132: 来凤县社会治安综合治理中心 | E132: 谭琴琴 | F132: 3142280506902 | G132: 1 | H132: 68.66666667 | I132: 82.24 | J132: 76.81066667 | K132: =_xlfn.RANK.EQ(J132,$J$131:$J$133,0) -> 2
A133: 130 | B133: 14228008007001001 | C133: 综合管理岗 | D133: 来凤县社会治安综合治理中心 | E133: 黄学韵 | F133: 3142280506926 | G133: 1 | H133: 69.16666667 | I133: 77.42 | J133: 74.11866667 | K133: =_xlfn.RANK.EQ(J133,$J$131:$J$133,0) -> 3
A134: 131 | B134: 14228008008001001 | C134: 综合管理岗 | D134: 来凤县营商环境发展促进中心 | E134: 李柯慧 | F134: 1142280214115 | G134: 1 | H134: 74.66666667 | I134: 86.14 | J134: =H134*0.4+I134*0.6 -> 81.55066667 | K134: =_xlfn.RANK.EQ(J134,$J$134:$J$136,0) -> 1
A135: 132 | B135: 14228008008001001 | C135: 综合管理岗 | D135: 来凤县营商环境发展促进中心 | E135: 龚艺 | F135: 1142280212814 | G135: 1 | H135: 68.83333333 | I135: 83.36 | J135: 77.54933333 | K135: =_xlfn.RANK.EQ(J135,$J$134:$J$136,0) -> 2
A136: 133 | B136: 14228008008001001 | C136: 综合管理岗 | D136: 来凤县营商环境发展促进中心 | E136: 黄坤艺 | F136: 1142280211405 | G136: 1 | H136: 67 | I136: 79.58 | J136: 74.548 | K136: =_xlfn.RANK.EQ(J136,$J$134:$J$136,0) -> 3
A137: 134 | B137: 14228008009001001 | C137: 综合业务岗 | D137: 来凤县科学技术情报所 | E137: 胡婷 | F137: 1142280213101 | G137: 1 | H137: 69.66666667 | I137: 84.34 | J137: 78.47066667 | K137: =_xlfn.RANK.EQ(J137,$J$137:$J$140,0) -> 1
A138: 135 | B138: 14228008009001001 | C138: 综合业务岗 | D138: 来凤县科学技术情报所 | E138: 邓欢 | F138: 1142280208616 | G138: 1 | H138: 66.83333333 | I138: 85 | J138: 77.73333333 | K138: =_xlfn.RANK.EQ(J138,$J$137:$J$140,0) -> 2
A139: 136 | B139: 14228008009001001 | C139: 综合业务岗 | D139: 来凤县科学技术情报所 | E139: 张盼 | F139: 1142280214311 | G139: 1 | H139: 66.83333333 | I139: 80.06 | J139: 74.76933333 | K139: =_xlfn.RANK.EQ(J139,$J$137:$J$140,0) -> 3
A140: 137 | B140: 14228008009001001 | C140: 综合业务岗 | D140: 来凤县科学技术情报所 | E140: 雷小红 | F140: 1142280212312 | G140: 1 | H140: 67.5 | I140: 78.86 | J140: 74.316 | K140: =_xlfn.RANK.EQ(J140,$J$137:$J$140,0) -> 4
A141: 138 | B141: 14228008010001001 | C141: 民族事务岗 | D141: 来凤县民族事务管理服务中心 | E141: 廖苓利 | F141: 1142280213317 | G141: 1 | H141: 68.33333333 | I141: 78.94 | J141: 74.69733333 | K141: =_xlfn.RANK.EQ(J141,$J$141:$J$143,0) -> 1
A142: 139 | B142: 14228008010001001 | C142: 民族事务岗 | D142: 来凤县民族事务管理服务中心 | E142: 刘德炅 | F142: 1142280215123 | G142: 1 | H142: 59.33333333 | I142: 77.46 | J142: 70.20933333 | K142: =_xlfn.RANK.EQ(J142,$J$141:$J$143,0) -> 2
A143: 140 | B143: 14228008010001001 | C143: 民族事务岗 | D143: 来凤县民族事务管理服务中心 | E143: 陈淑 | F143: 1142280207816 | G143: 1 | H143: 57.33333333 | I143: 74.7 | J143: 67.75333333 | K143: =_xlfn.RANK.EQ(J143,$J$141:$J$143,0) -> 3
A144: 141 | B144: 14228008012001001 | C144: 公证员 | D144: 来凤县公证处 | E144: 黄姣 | F144: 2142280301118 | G144: 1 | H144: 63 | I144: 83.1 | J144: 75.06 | K144: =_xlfn.RANK.EQ(J144,$J$144:$J$147,0) -> 1
A145: 142 | B145: 14228008012001001 | C145: 公证员 | D145: 来凤县公证处 | E145: 张琴 | F145: 2142280307317 | G145: 1 | H145: 63.66666667 | I145: 79.9 | J145: 73.40666667 | K145: =_xlfn.RANK.EQ(J145,$J$144:$J$147,0) -> 2
A146: 143 | B146: 14228008012001001 | C146: 公证员 | D146: 来凤县公证处 | E146: 杨诗雨 | F146: 2142280306727 | G146: 1 | H146: 68.33333333 | I146: 75.92 | J146: 72.88533333 | K146: =_xlfn.RANK.EQ(J146,$J$144:$J$147,0) -> 3
A147: 144 | B147: 14228008012001001 | C147: 公证员 | D147: 来凤县公证处 | E147: 马宏权 | F147: 2142280304417 | G147: 1 | H147: 63 | I147: 0 | J147: 25.2 | K147: =_xlfn.RANK.EQ(J147,$J$144:$J$147,0) -> 4 | L147: 缺考
A148: 145 | B148: 14228008012002001 | C148: 法律服务岗 | D148: 来凤县行政复议中心 | E148: 朱丹妮 | F148: 2142280303326 | G148: 1 | H148: 71.66666667 | I148: 85.3 | J148: 79.84666667 | K148: =_xlfn.RANK.EQ(J148,$J$148:$J$151,0) -> 1
A149: 146 | B149: 14228008012002001 | C149: 法律服务岗 | D149: 来凤县行政复议中心 | E149: 吴星霖 | F149: 2142280307302 | G149: 1 | H149: 71.83333333 | I149: 81.14 | J149: 77.41733333 | K149: =_xlfn.RANK.EQ(J149,$J$148:$J$151,0) -> 2
A150: 147 | B150: 14228008012002001 | C150: 法律服务岗 | D150: 来凤县行政复议中心 | E150: 张胜男 | F150: 2142280303312 | G150: 1 | H150: 70.16666667 | I150: 79.94 | J150: 76.03066667 | K150: =_xlfn.RANK.EQ(J150,$J$148:$J$151,0) -> 3
A151: 148 | B151: 14228008012002001 | C151: 法律服务岗 | D151: 来凤县行政复议中心 | E151: 庞琴 | F151: 2142280302615 | G151: 1 | H151: 70.16666667 | I151: 79.32 | J151: 75.65866667 | K151: =_xlfn.RANK.EQ(J151,$J$148:$J$151,0) -> 4
A152: 149 | B152: 14228008013001001 | C152: 信息技术岗 | D152: 来凤县国有资产管理中心 | E152: 向磊 | F152: 3142280509323 | G152: 1 | H152: 67.16666667 | I152: 84.52 | J152: 77.57866667 | K152: =_xlfn.RANK.EQ(J152,$J$152:$J$154,0) -> 1
A153: 150 | B153: 14228008013001001 | C153: 信息技术岗 | D153: 来凤县国有资产管理中心 | E153: 杨佩琼 | F153: 3142280510508 | G153: 1 | H153: 66.16666667 | I153: 83.94 | J153: 76.83066667 | K153: =_xlfn.RANK.EQ(J153,$J$152:$J$154,0) -> 2
A154: 151 | B154: 14228008013001001 | C154: 信息技术岗 | D154: 来凤县国有资产管理中心 | E154: 黄锦杉 | F154: 3142280506715 | G154: 1 | H154: 64.33333333 | I154: 0 | J154: 25.73333333 | K154: =_xlfn.RANK.EQ(J154,$J$152:$J$154,0) -> 3 | L154: 自动放弃
A155: 152 | B155: 14228008014001002 | C155: 乡村规划岗 | D155: 来凤县绿水镇自然资源和规划所 | E155: 向建升 | F155: 3142280508811 | G155: 1 | H155: 62.16666667 | I155: 84.36 | J155: 75.48266667 | K155: =_xlfn.RANK.EQ(J155,$J$155:$J$157,0) -> 1
A156: 153 | B156: 14228008014001002 | C156: 乡村规划岗 | D156: 来凤县绿水镇自然资源和规划所 | E156: 李全明 | F156: 3142280506018 | G156: 1 | H156: 54 | I156: 78.6 | J156: 68.76 | K156: =_xlfn.RANK.EQ(J156,$J$155:$J$157,0) -> 2
A157: 154 | B157: 14228008014001002 | C157: 乡村规划岗 | D157: 来凤县绿水镇自然资源和规划所 | E157: 李磊 | F157: 3142280505630 | G157: 1 | H157: 50.5 | I157: 78.1 | J157: 67.06 | K157: =_xlfn.RANK.EQ(J157,$J$155:$J$157,0) -> 3
A158: 155 | B158: 14228008014002001 | C158: 城乡规划岗 | D158: 来凤县城乡规划服务中心 | E158: 张芳 | F158: 3142280504601 | G158: 1 | H158: 64.83333333 | I158: 82.12 | J158: 75.20533333 | K158: =_xlfn.RANK.EQ(J158,$J$158:$J$161,0) -> 1
A159: 156 | B159: 14228008014002001 | C159: 城乡规划岗 | D159: 来凤县城乡规划服务中心 | E159: 谭颖 | F159: 3142280511219 | G159: 1 | H159: 62.33333333 | I159: 83.3 | J159: 74.91333333 | K159: =_xlfn.RANK.EQ(J159,$J$158:$J$161,0) -> 2
A160: 157 | B160: 14228008014002001 | C160: 城乡规划岗 | D160: 来凤县城乡规划服务中心 | E160: 杨心仪 | F160: 3142280508421 | G160: 1 | H160: 61.83333333 | I160: 82.76 | J160: 74.38933333 | K160: =_xlfn.RANK.EQ(J160,$J$158:$J$161,0) -> 3
A161: 158 | B161: 14228008014002001 | C161: 城乡规划岗 | D161: 来凤县城乡规划服务中心 | E161: 陈黎冰 | F161: 3142280506406 | G161: 1 | H161: 61.83333333 | I161: 0 | J161: 24.73333333 | K161: =_xlfn.RANK.EQ(J161,$J$158:$J$161,0) -> 4 | L161: 缺考
A162: 159 | B162: 14228008014003003 | C162: 综合业务岗 | D162: 来凤县自然资源保护和权益维护中心 | E162: 盛峰源 | F162: 1142280210324 | G162: 1 | H162: 69.66666667 | I162: 81.38 | J162: 76.69466667 | K162: =_xlfn.RANK.EQ(J162,$J$162:$J$164,0) -> 1
A163: 160 | B163: 14228008014003003 | C163: 综合业务岗 | D163: 来凤县自然资源保护和权益维护中心 | E163: 胡良 | F163: 1142280208705 | G163: 1 | H163: 61.33333333 | I163: 83.94 | J163: 74.89733333 | K163: =_xlfn.RANK.EQ(J163,$J$162:$J$164,0) -> 2
A164: 161 | B164: 14228008014003003 | C164: 综合业务岗 | D164: 来凤县自然资源保护和权益维护中心 | E164: 陈静 | F164: 1142280206830 | G164: 1 | H164: 62.16666667 | I164: 78.24 | J164: 71.81066667 | K164: =_xlfn.RANK.EQ(J164,$J$162:$J$164,0) -> 3
A165: 162 | B165: 14228008015001001 | C165: 项目资金管理岗 | D165: 来凤县公路事业发展中心 | E165: 覃文鑫 | F165: 2142280307328 | G165: 1 | H165: 73.33333333 | I165: 85.4 | J165: 80.57333333 | K165: =_xlfn.RANK.EQ(J165,$J$165:$J$168,0) -> 1
A166: 163 | B166: 14228008015001001 | C166: 项目资金管理岗 | D166: 来凤县公路事业发展中心 | E166: 杨爽 | F166: 2142280304726 | G166: 1 | H166: 73.33333333 | I166: 85.32 | J166: 80.52533333 | K166: =_xlfn.RANK.EQ(J166,$J$165:$J$168,0) -> 2
A167: 164 | B167: 14228008015001001 | C167: 项目资金管理岗 | D167: 来凤县公路事业发展中心 | E167: 刘思怡 | F167: 2142280306322 | G167: 1 | H167: 75.16666667 | I167: 79.36 | J167: 77.68266667 | K167: =_xlfn.RANK.EQ(J167,$J$165:$J$168,0) -> 3
A168: 165 | B168: 14228008015001001 | C168: 项目资金管理岗 | D168: 来凤县公路事业发展中心 | E168: 邓琬琳 | F168: 2142280307409 | G168: 1 | H168: 75.66666667 | I168: 78.78 | J168: 77.53466667 | K168: =_xlfn.RANK.EQ(J168,$J$165:$J$168,0) -> 4
A169: 166 | B169: 14228008015001002 | C169: 综合管理岗 | D169: 来凤县公路事业发展中心 | E169: 黄伟 | F169: 1142280215405 | G169: 1 | H169: 70.5 | I169: 86.72 | J169: 80.232 | K169: =_xlfn.RANK.EQ(J169,$J$169:$J$171,0) -> 1
A170: 167 | B170: 14228008015001002 | C170: 综合管理岗 | D170: 来凤县公路事业发展中心 | E170: 谭智薇 | F170: 1142280209320 | G170: 1 | H170: 69.66666667 | I170: 83.72 | J170: 78.09866667 | K170: =_xlfn.RANK.EQ(J170,$J$169:$J$171,0) -> 2
A171: 168 | B171: 14228008015001002 | C171: 综合管理岗 | D171: 来凤县公路事业发展中心 | E171: 向志丰 | F171: 1142280213411 | G171: 1 | H171: 71.16666667 | I171: 81.04 | J171: 77.09066667 | K171: =_xlfn.RANK.EQ(J171,$J$169:$J$171,0) -> 3
A172: 169 | B172: 14228008015002001 | C172: 道路桥梁技术岗 | D172: 来凤县农村公路事业发展中心 | E172: 吴保君 | F172: 3142280505030 | G172: 1 | H172: 71.16666667 | I172: 79.02 | J172: 75.87866667 | K172: =_xlfn.RANK.EQ(J172,$J$172:$J$174,0) -> 1
A173: 170 | B173: 14228008015002001 | C173: 道路桥梁技术岗 | D173: 来凤县农村公路事业发展中心 | E173: 胡鎏 | F173: 3142280509214 | G173: 1 | H173: 65.33333333 | I173: 79.24 | J173: 73.67733333 | K173: =_xlfn.RANK.EQ(J173,$J$172:$J$174,0) -> 2
A174: 171 | B174: 14228008015002001 | C174: 道路桥梁技术岗 | D174: 来凤县农村公路事业发展中心 | E174: 尹炟 | F174: 3142280508807 | G174: 1 | H174: 65.66666667 | I174: 73.58 | J174: 70.41466667 | K174: =_xlfn.RANK.EQ(J174,$J$172:$J$174,0) -> 3
A175: 172 | B175: 14228008016001001 | C175: 政策法规岗 | D175: 来凤县农村土地承包经营纠纷调解仲裁庭 | E175: 段婷 | F175: 2142280303313 | G175: 1 | H175: 77.16666667 | I175: 84.53 | J175: 81.58466667 | K175: =_xlfn.RANK.EQ(J175,$J$175:$J$177,0) -> 1
A176: 173 | B176: 14228008016001001 | C176: 政策法规岗 | D176: 来凤县农村土地承包经营纠纷调解仲裁庭 | E176: 易蜜蜜 | F176: 2142280306422 | G176: 1 | H176: 75.33333333 | I176: 81.22 | J176: 78.86533333 | K176: =_xlfn.RANK.EQ(J176,$J$175:$J$177,0) -> 2
A177: 174 | B177: 14228008016001001 | C177: 政策法规岗 | D177: 来凤县农村土地承包经营纠纷调解仲裁庭 | E177: 代琪琪 | F177: 2142280302124 | G177: 1 | H177: 71.66666667 | I177: 80.66 | J177: 77.06266667 | K177: =_xlfn.RANK.EQ(J177,$J$175:$J$177,0) -> 3
A178: 175 | B178: 14228008016002001 | C178: 畜牧兽医服务岗 | D178: 来凤县畜牧兽医服务中心 | E178: 王海宇 | F178: 3142280509012 | G178: 1 | H178: 51.16666667 | I178: 76.56 | J178: 66.40266667 | K178: =_xlfn.RANK.EQ(J178,$J$178:$J$180,0) -> 1
A179: 176 | B179: 14228008016002001 | C179: 畜牧兽医服务岗 | D179: 来凤县畜牧兽医服务中心 | E179: 谭怡涵 | F179: 3142280507108 | G179: 1 | H179: 52.33333333 | I179: 70.06 | J179: 62.96933333 | K179: =_xlfn.RANK.EQ(J179,$J$178:$J$180,0) -> 2
A180: 177 | B180: 14228008016002001 | C180: 畜牧兽医服务岗 | D180: 来凤县畜牧兽医服务中心 | E180: 龙依婷 | F180: 3142280506417 | G180: 1 | H180: 51.66666667 | I180: 0 | J180: 20.66666667 | K180: =_xlfn.RANK.EQ(J180,$J$178:$J$180,0) -> 3 | L180: 缺考
A181: 178 | B181: 14228008017001001 | C181: 政策法规岗 | D181: 来凤县政府投资项目审计中心 | E181: 许若璇 | F181: 2142280304525 | G181: 1 | H181: 74.16666667 | I181: 85.16 | J181: 80.76266667 | K181: =_xlfn.RANK.EQ(J181,$J$181:$J$183,0) -> 1
A182: 179 | B182: 14228008017001001 | C182: 政策法规岗 | D182: 来凤县政府投资项目审计中心 | E182: 陈月婷 | F182: 2142280304919 | G182: 1 | H182: 71.16666667 | I182: 83.5 | J182: 78.56666667 | K182: =_xlfn.RANK.EQ(J182,$J$181:$J$183,0) -> 2
A183: 180 | B183: 14228008017001001 | C183: 政策法规岗 | D183: 来凤县政府投资项目审计中心 | E183: 刘鑫 | F183: 2142280302822 | G183: 1 | H183: 70.5 | I183: 77.28 | J183: 74.568 | K183: =_xlfn.RANK.EQ(J183,$J$181:$J$183,0) -> 3
A184: 181 | B184: 14228008018001001 | C184: 监督管理岗 | D184: 来凤县市场监督管理局信息中心 | E184: 张林 | F184: 1142280213420 | G184: 1 | H184: 71.33333333 | I184: 81.2 | J184: 77.25333333 | K184: =_xlfn.RANK.EQ(J184,$J$184:$J$186,0) -> 1
A185: 182 | B185: 14228008018001001 | C185: 监督管理岗 | D185: 来凤县市场监督管理局信息中心 | E185: 鲁懿 | F185: 1142280216011 | G185: 1 | H185: 70.83333333 | I185: 79.56 | J185: 76.06933333 | K185: =_xlfn.RANK.EQ(J185,$J$184:$J$186,0) -> 2
A186: 183 | B186: 14228008018001001 | C186: 监督管理岗 | D186: 来凤县市场监督管理局信息中心 | E186: 唐芳 | F186: 1142280210014 | G186: 1 | H186: 69.66666667 | I186: 80.2 | J186: 75.98666667 | K186: =_xlfn.RANK.EQ(J186,$J$184:$J$186,0) -> 3
A187: 184 | B187: 14228008018001002 | C187: 信息维护岗 | D187: 来凤县市场监督管理局信息中心 | E187: 张杰 | F187: 2142280305603 | G187: 1 | H187: 75 | I187: 76 | J187: 75.6 | K187: =_xlfn.RANK.EQ(J187,$J$187:$J$189,0) -> 1
A188: 185 | B188: 14228008018001002 | C188: 信息维护岗 | D188: 来凤县市场监督管理局信息中心 | E188: 向天宇 | F188: 2142280305728 | G188: 1 | H188: 69.83333333 | I188: 72.18 | J188: 71.24133333 | K188: =_xlfn.RANK.EQ(J188,$J$187:$J$189,0) -> 2
A189: 186 | B189: 14228008018001002 | C189: 信息维护岗 | D189: 来凤县市场监督管理局信息中心 | E189: 向金康 | F189: 2142280302703 | G189: 1 | H189: 69 | I189: 72.58 | J189: 71.148 | K189: =_xlfn.RANK.EQ(J189,$J$187:$J$189,0) -> 3
A190: 187 | B190: 14228008019001001 | C190: 计算机应用岗 | D190: 来凤县社情民意调查中心 | E190: 向秋杭 | F190: 3142280508320 | G190: 1 | H190: 64.33333333 | I190: 79.58 | J190: 73.48133333 | K190: =_xlfn.RANK.EQ(J190,$J$190:$J$192,0) -> 1
A191: 188 | B191: 14228008019001001 | C191: 计算机应用岗 | D191: 来凤县社情民意调查中心 | E191: 吴章航 | F191: 3142280509703 | G191: 1 | H191: 65.5 | I191: 74.16 | J191: 70.696 | K191: =_xlfn.RANK.EQ(J191,$J$190:$J$192,0) -> 2
A192: 189 | B192: 14228008019001001 | C192: 计算机应用岗 | D192: 来凤县社情民意调查中心 | E192: 谢昌浩 | F192: 3142280511029 | G192: 1 | H192: 64.33333333 | I192: 74.2 | J192: 70.25333333 | K192: =_xlfn.RANK.EQ(J192,$J$190:$J$192,0) -> 3
A193: 190 | B193: 14228008019001002 | C193: 统计业务岗 | D193: 来凤县社情民意调查中心 | E193: 叶婧 | F193: 1142280209516 | G193: 1 | H193: 70.66666667 | I193: 78.96 | J193: 75.64266667 | K193: =_xlfn.RANK.EQ(J193,$J$193:$J$195,0) -> 1
A194: 191 | B194: 14228008019001002 | C194: 统计业务岗 | D194: 来凤县社情民意调查中心 | E194: 刘芷君 | F194: 1142280208811 | G194: 1 | H194: 58.5 | I194: 79.3 | J194: 70.98 | K194: =_xlfn.RANK.EQ(J194,$J$193:$J$195,0) -> 2
A195: 192 | B195: 14228008019001002 | C195: 统计业务岗 | D195: 来凤县社情民意调查中心 | E195: 赵洁 | F195: 1142280211604 | G195: 1 | H195: 55.66666667 | I195: 75.24 | J195: 67.41066667 | K195: =_xlfn.RANK.EQ(J195,$J$193:$J$195,0) -> 3
A196: 193 | B196: 14228008020001001 | C196: 综合业务岗 | D196: 来凤县行政审批服务中心 | E196: 李可心 | F196: 1142280208825 | G196: 1 | H196: 69.66666667 | I196: 87.16 | J196: 80.16266667 | K196: =_xlfn.RANK.EQ(J196,$J$196:$J$198,0) -> 1
A197: 194 | B197: 14228008020001001 | C197: 综合业务岗 | D197: 来凤县行政审批服务中心 | E197: 田春梅 | F197: 1142280212926 | G197: 1 | H197: 72.66666667 | I197: 84.26 | J197: 79.62266667 | K197: =_xlfn.RANK.EQ(J197,$J$196:$J$198,0) -> 2
A198: 195 | B198: 14228008020001001 | C198: 综合业务岗 | D198: 来凤县行政审批服务中心 | E198: 陈民慧 | F198: 1142280214023 | G198: 1 | H198: 69.83333333 | I198: 80.62 | J198: =H198*0.4+I198*0.6 -> 76.30533333 | K198: =_xlfn.RANK.EQ(J198,$J$196:$J$198,0) -> 3
A199: 196 | B199: 14228008020001002 | C199: 政策法规岗 | D199: 来凤县行政审批服务中心 | E199: 谢羽霏 | F199: 1142280209316 | G199: 1 | H199: 72.66666667 | I199: 83.94 | J199: =H199*0.4+I199*0.6 -> 79.43066667 | K199: =_xlfn.RANK.EQ(J199,$J$199:$J$201,0) -> 1
A200: 197 | B200: 14228008020001002 | C200: 政策法规岗 | D200: 来凤县行政审批服务中心 | E200: 张洁辉 | F200: 1142280207230 | G200: 1 | H200: 65.83333333 | I200: 79.52 | J200: 74.04533333 | K200: =_xlfn.RANK.EQ(J200,$J$199:$J$201,0) -> 2
... 48 more rows
